bitfinex/quotes_ETHUSD_20251006
["timestamp","ask_amount","ask_price","bid_price","bid_amount"]
[1759788204823,6.15095307,4701.2,4701.1,1e-08]
[1759788206508,2.66175307,4701.2,4701.1,1e-08]
[1759788206703,5.05875307,4701.2,4701.1,1e-08]
[1759788208846,5.16515307,4701.2,4701.1,1e-08]
[1759788215045,9.38515307,4701.2,4701.1,1e-08]
[1759788216227,10.01875307,4701.2,4701.1,1e-08]
[1759788217239,10.46415307,4701.2,4701.1,1e-08]
[1759788217552,6.24415307,4701.2,4701.1,1e-08]
[1759788217754,8.64415307,4701.2,4701.1,1e-08]
[1759788219126,20.01392411,4701.2,4701.1,1e-08]
[1759788219540,2.76116903,4700.2,4700.1,1e-08]
[1759788219741,5.64803613,4700.2,4700.1,1e-08]
[1759788219943,6.09343613,4700.2,4700.1,1e-08]
[1759788220938,6.09343613,4700.2,4700.1,0.00100001]
[1759788223738,8.49343613,4700.2,4700.1,0.00100001]
[1759788227263,5.65003613,4700.2,4700.1,0.00100001]
[1759788227452,8.04803613,4700.2,4700.1,0.00100001]
[1759788227654,5.01643613,4700.2,4700.1,0.00100001]
[1759788227966,8.04803613,4700.2,4700.1,0.00100001]
[1759788228166,8.24650247,4700.2,4700.1,0.00100001]
[1759788228953,8.69190247,4700.2,4700.1,0.00100001]
[1759788229467,8.79830247,4700.2,4700.1,0.00100001]
[1759788234151,20.13830247,4700.2,4700.1,0.00100001]
[1759788237571,31.50807351,4700.2,4700.1,0.00100001]
[1759788238343,16.55490247,4700.2,4700.1,0.00100001]
[1759788238547,19.05930247,4700.2,4700.1,0.00100001]
[1759788238791,19.69290247,4700.2,4700.1,0.00100001]
[1759788238950,16.66130247,4700.2,4700.1,0.00100001]
[1759788239157,20.46369877,4700.2,4700.1,0.00100001]
[1759788239473,23.49529877,4700.2,4700.1,0.00100001]
[1759788239862,22.86169877,4700.2,4700.1,0.00100001]
[1759788240373,23.49529877,4700.2,4700.1,0.00100001]
[1759788240753,21.09729877,4700.2,4700.1,0.00100001]
[1759788240947,23.49529877,4700.2,4700.1,0.00100001]
[1759788243884,2.76139539,4699.7,4699.6,0.001]
[1759788244056,5.26579539,4699.7,4699.6,0.001]
[1759788245285,5.46456147,4699.7,4699.6,0.001]
[1759788245954,5.26579539,4699.7,4699.6,0.001]
[1759788246465,5.46467358,4699.7,4699.6,0.001]
[1759788246779,7.23973572,4699.7,4699.6,0.001]
[1759788248062,4.84173572,4699.7,4699.6,0.001]
[1759788248260,4.21899999,4699.7,4699.6,0.1498]
[1759788248459,7.12,4701.3,4699.7,2.12779539]
[1759788248660,2.12747632,4700.5,4700.4,0.76048208]
[1759788248985,4.52547632,4700.5,4700.4,0.90928208]
[1759788249189,0.002,4700.8,4700.4,0.1488]
[1759788249486,0.002,4700.8,4700.7,2.12734273]
[1759788249682,0.002,4700.8,4700.7,10.95146173]
[1759788249885,0.002,4700.8,4700.7,6.96503873]
[1759788250184,0.002,4700.8,4700.7,9.36503873]
[1759788250681,0.002,4700.8,4700.7,16.64394673]
[1759788251579,0.002,4700.8,4700.7,37.07614273]
[1759788252575,0.002,4700.8,4700.7,38.87941575]
[1759788253498,0.002,4700.8,4700.7,34.96488815]
[1759788253680,0.002,4700.8,4700.7,37.36488815]
[1759788254595,0.002,4700.8,4700.7,7.36488815]
[1759788254982,0.002,4700.8,4700.7,37.36488815]
[1759788255556,0.012,4701.9,4700.8,33.0336]
[1759788255787,0.012,4701.9,4701.8,2.12684503]
[1759788255990,0.012,4701.9,4701.8,37.21459045]
[1759788256187,0.012,4701.9,4701.8,37.79679812]
[1759788256387,0.002,4702.4,4702.3,2.12661888]
[1759788256592,0.002,4702.4,4702.3,12.74164388]
[1759788256893,0.002,4702.4,4702.3,11.22945088]
[1759788257061,0.002,4702.4,4702.3,14.11463013]
[1759788257585,0.002,4702.4,4702.3,13.36270088]
[1759788257789,0.002,4702.4,4702.3,17.21333988]
[1759788258100,0.002,4702.4,4702.3,14.28939788]
[1759788258261,0.002,4702.4,4702.3,14.40079788]
[1759788258892,0.002,4702.4,4702.3,14.40579788]
[1759788259260,0.002,4702.4,4702.3,14.40079788]
[1759788259467,0.002,4702.4,4702.3,25.57734888]
[1759788259797,0.002,4702.4,4702.3,26.48076155]
[1759788260159,0.002,4702.4,4702.3,22.81237655]
[1759788260390,0.002,4702.4,4702.3,20.5854153]
[1759788260590,0.002,4702.4,4702.3,5.34339315]
[1759788260821,0.002,4702.4,4702.3,7.18281888]
[1759788261484,0.002,4702.4,4702.3,10.29326688]
[1759788262566,0.002,4702.4,4702.3,7.18281888]
[1759788262770,0.002,4702.4,4702.3,7.74346688]
[1759788262967,0.002,4702.4,4702.3,4.9074]
[1759788264176,0.002,4702.4,4702.3,7.03301888]
[1759788265126,0.002,4702.4,4702.3,10.73587588]
[1759788266016,0.002,4702.4,4702.3,11.00887088]
[1759788267015,0.002,4702.4,4702.3,13.85686888]
[1759788267216,0.002,4702.4,4702.3,18.03142888]
[1759788267395,0.002,4702.4,4702.3,14.89605488]
[1759788267838,0.002,4702.4,4702.3,14.27005488]
[1759788268004,0.002,4702.4,4702.3,14.42791788]
[1759788268356,0.002,4702.4,4702.3,14.31027988]
[1759788268499,0.002,4702.4,4702.3,13.34927988]
[1759788268701,0.002,4702.4,4702.3,13.61147988]
[1759788268900,0.002,4702.4,4702.3,13.63273188]
[1759788269117,0.002,4702.4,4702.3,10.69769388]
[1759788269326,0.002,4702.4,4702.3,11.99069588]
[1759788269624,0.002,4702.4,4702.3,12.54169588]
[1759788269832,0.002,4702.4,4702.3,11.80869588]
[1759788270033,0.002,4702.4,4702.3,11.24769588]
[1759788270336,0.002,4702.4,4702.3,9.25668788]
[1759788271136,0.002,4702.4,4702.3,10.55068788]
[1759788271335,0.002,4702.4,4702.3,10.0984333]
[1759788272134,0.002,4702.4,4702.3,21.1882793]
[1759788272335,0.002,4702.4,4702.3,15.87741057]
[1759788272805,0.002,4702.4,4702.3,14.17995157]
[1759788273134,0.002,4702.4,4702.3,13.81927957]
[1759788273336,0.002,4702.4,4702.3,13.5189053]
[1759788273535,0.002,4702.4,4702.3,11.1213153]
[1759788274343,0.002,4702.4,4702.3,10.76914588]
[1759788275338,0.002,4702.4,4702.3,12.80298413]
[1759788276240,0.002,4702.4,4702.3,7.67954813]
[1759788276429,0.002,4702.4,4702.3,12.69652588]
[1759788277540,0.002,4702.4,4702.3,12.84845588]
[1759788277730,0.002,4702.4,4702.3,12.85470088]
[1759788277929,0.002,4702.4,4702.3,12.85233988]
[1759788278244,0.002,4702.4,4702.3,12.84037488]
[1759788278539,0.002,4702.4,4702.3,6.92761888]
[1759788278713,0.002,4702.4,4702.3,9.45394888]
[1759788278914,0.002,4702.4,4702.3,7.05294888]
[1759788279241,0.4643,4702.4,4702.3,2.4]
[1759788279405,0.4643,4702.4,4702.2,1.1342773]
[1759788279629,0.002,4702.4,4702.3,2.4]
[1759788280028,0.67714853,4702.4,4702.3,2.4]
[1759788280655,0.67714853,4702.4,4702.3,3.15649401]
[1759788281151,0.67714853,4702.4,4702.3,2.4]
[1759788281454,0.67714853,4702.4,4702.3,3.15649401]
[1759788281963,2.80372219,4702.4,4702.3,2.4]
[1759788282350,2.80372219,4702.4,4702.2,3.15649401]
[1759788282526,0.96595684,4702.3,4702.2,0.75649401]
[1759788282856,2.12675457,4702.0,4701.8,0.75749401]
[1759788283055,2.1267998,4701.9,4701.8,0.001]
[1759788283390,2.8667998,4701.9,4701.8,0.001]
[1759788283556,3.52772771,4701.9,4701.8,0.001]
[1759788283935,3.3290998,4701.9,4701.8,0.001]
[1759788284164,1.00788544,4701.9,4701.8,0.001]
[1759788284327,2.5890998,4701.9,4701.8,0.001]
[1759788284524,0.4623,4701.9,4701.8,0.001]
[1759788288774,2.5890998,4701.9,4701.8,0.001]
[1759788288960,0.4623,4701.9,4701.8,0.001]
[1759788289273,2.5890998,4701.9,4701.8,0.001]
[1759788289766,3.06067726,4701.9,4701.8,0.001]
[1759788291249,3.69427726,4701.9,4701.8,0.001]
[1759788294271,6.20067726,4701.9,4701.8,0.001]
[1759788295276,6.20267726,4701.9,4701.8,0.001]
[1759788297005,10.83967726,4701.9,4701.8,0.001]
[1759788297188,2.76058075,4701.5,4701.4,0.001]
[1759788297394,14.27831222,4701.5,4701.4,0.001]
[1759788297596,14.74061222,4701.5,4701.4,0.001]
[1759788297902,14.82574821,4701.5,4701.4,0.001]
[1759788298774,14.71934821,4701.5,4701.4,0.001]
[1759788302717,13.387472,4701.0,4700.9,1e-08]
[1759788303525,13.47261343,4701.0,4700.9,1e-08]
[1759788308725,13.387472,4701.0,4700.9,1e-08]
[1759788308926,13.493872,4701.0,4700.9,1e-08]
[1759788311535,13.69185403,4701.0,4700.9,1e-08]
[1759788312218,13.69184928,4701.0,4700.9,1e-08]
[1759788314445,2.12779539,4699.7,4698.9,2.12814597]
[1759788314631,8.73379537,4699.7,4698.9,2.12814597]
[1759788315616,8.73379537,4699.7,4699.0,2.69606311]
[1759788316026,8.73379537,4699.7,4699.0,0.56795215]
[1759788316221,8.73379537,4699.7,4699.0,2.69605663]
[1759788316426,8.73379537,4699.7,4699.0,0.56795215]
[1759788317347,8.73379537,4699.7,4699.1,0.57895215]
[1759788317543,8.73379537,4699.7,4699.1,0.011]
[1759788317859,8.73379537,4699.7,4699.6,0.001]
[1759788318152,9.84009537,4699.7,4699.6,0.001]
[1759788318309,10.03830963,4699.7,4699.6,0.001]
[1759788318515,12.17513025,4699.7,4699.6,0.001]
[1759788324155,14.57539679,4699.7,4699.6,0.001]
[1759788324361,14.57539679,4699.7,4699.1,0.011]
[1759788324362,9.7971921,4699.2,4699.1,1e-08]
[1759788324525,16.60467288,4699.2,4699.1,1e-08]
[1759788324751,19.1634198,4699.2,4699.1,1e-08]
[1759788326072,19.16352041,4699.2,4699.1,1e-08]
[1759788328268,3.0336,4699.1,4698.6,0.001]
[1759788328506,4.63557031,4698.7,4698.6,0.001]
[1759788328660,14.50200212,4698.7,4698.6,0.001]
[1759788328838,14.97470212,4698.7,4698.6,0.001]
[1759788329362,17.21170212,4698.7,4698.6,0.001]
[1759788330477,17.21146361,4698.7,4698.6,0.001]
[1759788332151,21.41746359,4698.7,4698.6,0.001]
[1759788333591,2.12892787,4697.2,4696.1,4.53942458]
[1759788333795,9.36352785,4697.2,4696.1,2.41]
[1759788334164,9.36352785,4697.2,4697.1,0.157]
[1759788334564,9.46992785,4697.2,4697.1,0.157]
[1759788334767,9.46992785,4697.2,4697.1,0.0072]
[1759788334964,11.34180436,4697.2,4697.1,0.0072]
[1759788335395,11.34180436,4697.2,4697.1,1e-08]
[1759788335708,7.77562114,4697.2,4697.1,1e-08]
[1759788335865,10.17562114,4697.2,4697.1,1e-08]
[1759788337075,14.81119145,4697.2,4697.1,1e-08]
[1759788341239,17.7927851,4697.2,4697.1,1e-08]
[1759788342000,17.79246519,4697.2,4697.1,1e-08]
[1759788345129,17.59466834,4697.2,4697.1,1e-08]
[1759788345330,10.94938636,4697.2,4697.1,1e-08]
[1759788345627,13.36038636,4697.2,4697.1,1e-08]
[1759788345930,13.35938636,4697.2,4697.1,1e-08]
[1759788346427,13.80228636,4697.2,4697.1,1e-08]
[1759788348727,14.00041758,4697.2,4697.1,1e-08]
[1759788348914,13.80228636,4697.2,4697.1,1e-08]
[1759788349601,14.00046071,4697.2,4697.1,1e-08]
[1759788349799,14.00046071,4697.2,4697.1,0.00100001]
[1759788350211,14.00246071,4697.2,4697.1,0.00100001]
[1759788350433,14.00251336,4697.2,4697.1,0.00100001]
[1759788351835,14.00257566,4697.2,4697.1,0.00100001]
[1759788352632,13.55967566,4697.2,4697.1,0.00100001]
[1759788352837,14.00257566,4697.2,4697.1,0.00100001]
[1759788353034,2.7629812,4696.2,4696.1,0.011]
[1759788353333,9.36298117,4696.2,4696.1,0.011]
[1759788353535,9.36298117,4696.2,4696.1,0.1608]
[1759788353536,9.46938117,4696.2,4696.1,0.1608]
[1759788354205,7.05938117,4696.2,4696.1,0.1608]
[1759788354406,9.46938117,4696.2,4696.1,0.1608]
[1759788354605,10.37729884,4696.2,4696.1,0.011]
[1759788355033,10.37729884,4696.2,4696.1,0.1608]
[1759788358331,14.18588082,4696.2,4696.1,0.011]
[1759788359560,14.38471974,4696.2,4696.1,0.011]
[1759788360272,14.38471938,4696.2,4696.1,0.011]
[1759788360418,10.5761374,4696.2,4696.1,0.011]
[1759788364863,0.6336,4696.0,4695.6,0.001]
[1759788365061,2.23600793,4695.7,4695.6,0.001]
[1759788365286,6.89323853,4695.7,4695.6,0.1508]
[1759788365421,6.89323853,4695.7,4695.6,0.90729401]
[1759788365422,9.02284646,4695.7,4695.6,0.90729401]
[1759788365626,9.02284646,4695.7,4695.6,0.1508]
[1759788367429,9.02284646,4695.7,4695.6,0.90729401]
[1759788367633,9.02284646,4695.7,4695.6,0.75749401]
[1759788370147,9.02284646,4695.7,4695.6,0.001]
[1759788370334,10.26513798,4695.7,4695.6,0.001]
[1759788370662,10.26513798,4695.7,4695.6,0.75749401]
[1759788371244,9.02284646,4695.7,4695.6,0.75749401]
[1759788371440,9.65644646,4695.7,4695.6,0.75749401]
[1759788371740,9.65644646,4695.7,4695.6,0.001]
[1759788371741,10.10064646,4695.7,4695.6,0.001]
[1759788374058,9.65644646,4695.7,4695.6,0.001]
[1759788374232,10.10064646,4695.7,4695.6,0.001]
[1759788374433,11.45071798,4695.7,4695.6,0.001]
[1759788374834,9.04171798,4695.7,4695.6,0.001]
[1759788375036,11.45071798,4695.7,4695.6,0.001]
[1759788381575,7.27171801,4695.7,4695.6,0.001]
[1759788385882,7.27210771,4695.7,4695.6,0.001]
[1759788386878,11.08068969,4695.7,4695.6,0.001]
[1759788388579,13.48068969,4695.7,4695.6,0.001]
[1759788389986,11.07168969,4695.7,4695.6,0.001]
[1759788390181,13.48868969,4695.7,4695.6,0.001]
[1759788390479,2.76357081,4694.9,4694.8,0.001]
[1759788390655,5.97554649,4694.9,4694.8,0.001]
[1759788391253,6.41974649,4694.9,4694.8,0.001]
[1759788391483,5.97554649,4694.9,4694.8,0.001]
[1759788391870,6.41974649,4694.9,4694.8,0.001]
[1759788392787,5.97554649,4694.9,4694.8,0.001]
[1759788392990,6.41974649,4694.9,4694.8,0.001]
[1759788394690,5.97554649,4694.9,4694.8,0.001]
[1759788394901,6.42644649,4694.9,4694.8,0.001]
[1759788395475,6.85989479,4694.9,4694.8,0.001]
[1759788396123,2.96279907,4694.9,4694.8,0.001]
[1759788396325,5.28797081,4694.9,4694.8,0.1508]
[1759788399940,2.23637081,4694.9,4694.8,0.1508]
[1759788400237,5.28897081,4694.9,4694.8,0.1508]
[1759788401048,0.1064,4694.9,4694.8,0.1508]
[1759788401612,0.002,4696.1,4694.8,0.1508]
[1759788401812,0.1064,4695.4,4694.9,2.8864599]
[1759788402216,0.1064,4695.4,4695.0,0.90629401]
[1759788402410,0.002,4696.1,4695.0,0.90629401]
[1759788402411,0.1064,4695.8,4695.3,0.75649401]
[1759788402608,0.1064,4695.8,4695.4,0.90629401]
[1759788402807,0.1064,4695.8,4695.4,3.03603668]
[1759788403035,0.002,4696.1,4695.4,3.03603668]
[1759788403036,0.002,4696.1,4695.7,0.75649401]
[1759788403207,0.002,4696.1,4695.9,0.75649401]
[1759788403641,0.002,4696.1,4696.0,0.1498]
[1759788404859,0.002,4696.1,4696.0,2.27927189]
[1759788405260,0.002,4696.1,4696.0,3.1421659]
[1759788405428,0.002,4696.1,4696.0,6.58764389]
[1759788405763,0.002,4696.1,4696.0,6.57364389]
[1759788406064,0.002,4696.6,4696.5,2.12924518]
[1759788406229,0.002,4696.6,4696.3,1.1342773]
[1759788406542,0.002,4696.6,4696.5,3.26420686]
[1759788406742,0.002,4696.6,4696.5,5.39345204]
[1759788406944,0.002,4696.6,4696.5,5.54325204]
[1759788407144,0.002,4696.6,4696.5,4.78544518]
[1759788407657,0.002,4696.6,4696.5,2.6562]
[1759788407967,0.002,4696.6,4696.5,4.78544518]
[1759788408637,0.002,4696.6,4696.5,7.20544518]
[1759788410843,0.002,4696.6,4696.5,4.78544518]
[1759788411162,0.002,4696.6,4696.5,7.20544518]
[1759788412447,0.002,4696.6,4696.5,5.0762]
[1759788413344,0.002,4696.6,4696.5,2.6562]
[1759788413563,0.002,4696.6,4696.5,5.0752]
[1759788414572,0.002,4696.6,4696.5,7.20444518]
[1759788416078,0.002,4696.6,4696.5,4.78544518]
[1759788416281,0.002,4696.6,4696.5,7.20344518]
[1759788418381,0.002,4696.6,4696.5,7.05364518]
[1759788418561,0.002,4696.6,4696.5,7.09704518]
[1759788418881,0.01,4696.9,4696.8,2.12910918]
[1759788419084,0.01,4696.9,4696.8,30.28397637]
[1759788419256,0.002,4697.2,4697.1,2.12897319]
[1759788419455,0.002,4697.2,4697.1,27.54064875]
[1759788419678,0.002,4697.2,4697.1,27.81106084]
[1759788419873,0.002,4697.2,4697.1,27.20701428]
[1759788420072,0.002,4698.2,4697.6,2.12874659]
[1759788420283,0.002,4698.2,4697.6,18.19942859]
[1759788420583,0.002,4698.2,4697.6,18.94916459]
[1759788420761,0.002,4698.2,4697.6,16.05770659]
[1759788420961,0.002,4698.2,4697.6,14.10120359]
[1759788421569,0.002,4698.2,4697.6,18.89028159]
[1759788421769,0.002,4698.2,4697.6,18.68019359]
[1759788421982,0.002,4698.2,4697.6,17.66434959]
[1759788423598,0.002,4698.2,4697.6,17.57934659]
[1759788424074,0.002,4698.2,4697.6,16.70118159]
[1759788424489,0.002,4698.2,4697.6,16.55138159]
[1759788424708,0.002,4698.2,4697.6,17.06661959]
[1759788425461,0.002,4698.2,4697.8,2.12865596]
[1759788425667,0.002,4698.2,4698.1,2.12852004]
[1759788426993,0.002,4698.2,4698.1,19.39926513]
[1759788427492,0.002,4698.2,4698.1,8.36746104]
[1759788427790,0.002,4698.2,4698.1,9.09952904]
[1759788428374,0.002,4698.2,4698.1,9.07825404]
[1759788428586,0.002,4698.2,4698.1,6.94452004]
[1759788428962,0.4632,4698.2,4698.1,4.816]
[1759788429166,0.4632,4698.2,4696.9,1.1304869]
[1759788429397,2.12861604,4697.9,4697.5,0.1064]
[1759788429613,0.4612,4697.8,4697.6,4.816]
[1759788430061,2.12861604,4697.9,4697.6,2.4]
[1759788430260,0.4612,4697.7,4696.3,1.1304869]
[1759788430503,0.4612,4697.7,4697.0,0.1064]
[1759788430504,2.1288468,4697.4,4697.0,0.1064]
[1759788430800,0.1064,4697.7,4696.0,1.1304869]
[1759788430801,0.4612,4697.3,4696.0,1.1304869]
[1759788430999,2.12898406,4697.1,4696.7,0.1064]
[1759788431299,0.4612,4697.0,4696.7,0.1064]
[1759788431665,0.4612,4697.0,4696.1,0.011]
[1759788431891,0.1064,4696.7,4696.1,0.011]
[1759788432099,0.1064,4696.3,4696.1,0.011]
[1759788432271,0.6336,4696.2,4696.1,0.011]
[1759788432470,3.2241812,4696.2,4696.1,0.011]
[1759788432670,0.4612,4696.2,4696.1,0.011]
[1759788433735,3.2241812,4696.2,4696.1,0.011]
[1759788433932,3.75953036,4696.2,4696.1,0.011]
[1759788434101,3.75953036,4696.2,4695.6,0.001]
[1759788434102,2.12942654,4696.1,4695.6,0.001]
[1759788434302,0.6336,4695.8,4695.6,0.001]
[1759788434803,1.0948,4695.7,4695.6,0.001]
[1759788435413,3.22440793,4695.7,4695.6,0.001]
[1759788435614,4.21454509,4695.7,4695.6,0.001]
[1759788439638,0.62056296,4696.2,4695.6,0.001]
[1759788439851,2.59053884,4696.3,4695.6,0.001]
[1759788440156,0.08521072,4696.4,4695.6,0.001]
[1759788440301,0.6336,4696.3,4695.6,0.001]
[1759788440503,2.12929108,4696.4,4695.6,0.001]
[1759788442249,0.1064,4696.1,4695.6,2.13064212]
[1759788442551,0.1064,4696.1,4695.6,2.29144212]
[1759788442749,0.1064,4696.1,4695.6,0.1618]
[1759788442920,0.1064,4696.1,4695.6,2.2914161]
[1759788443319,0.1064,4696.1,4695.7,2.12960163]
[1759788443644,0.1064,4696.1,4695.7,0.1608]
[1759788444044,0.1064,4696.1,4695.6,2.13065148]
[1759788444617,0.1064,4696.1,4695.6,0.001]
[1759788445463,0.1064,4696.1,4695.6,2.13064561]
[1759788446029,0.1064,4696.4,4695.8,0.1064]
[1759788446348,2.12933632,4696.3,4695.8,0.1064]
[1759788446557,0.4612,4696.2,4695.8,0.1064]
[1759788446720,2.12933586,4696.3,4695.8,0.1064]
[1759788447061,0.4612,4696.1,4695.8,2.5234]
[1759788449171,2.23572386,4696.4,4695.8,2.5234]
[1759788449379,2.69692386,4696.4,4695.8,2.5234]
[1759788449759,2.12935338,4696.3,4695.8,2.5234]
[1759788449967,0.5676,4696.4,4695.8,2.5234]
[1759788450367,0.1064,4696.4,4695.8,2.5234]
[1759788451278,2.2356979,4696.4,4695.8,2.5234]
[1759788452500,0.1064,4696.4,4695.8,2.5234]
[1759788453141,0.1064,4696.4,4695.8,4.65296048]
[1759788453347,0.1064,4696.4,4695.9,2.12951419]
[1759788453981,0.1064,4696.4,4695.8,4.65295376]
[1759788455686,0.1084,4696.4,4695.9,4.52950905]
[1759788458189,0.1084,4696.4,4695.9,2.4]
[1759788458495,0.1084,4696.4,4696.3,0.1064]
[1759788458496,0.002,4696.4,4696.3,0.1064]
[1759788458667,0.002,4696.4,4696.3,7.936728]
[1759788458862,0.002,4696.4,4696.3,10.22686386]
[1759788459467,0.002,4696.4,4696.3,7.72785886]
[1759788460287,0.002,4696.4,4696.3,8.85834576]
[1759788460668,0.002,4696.4,4696.3,7.72785886]
[1759788461070,0.002,4696.4,4696.3,7.88865886]
[1759788461480,0.002,4696.4,4696.3,7.88689686]
[1759788462197,0.002,4696.4,4696.3,7.72609686]
[1759788462396,0.002,4696.4,4696.3,10.18049686]
[1759788462608,0.002,4696.4,4696.3,10.79146186]
[1759788462773,0.002,4696.4,4696.3,10.43059786]
[1759788463097,0.002,4696.4,4696.3,10.26979786]
[1759788463270,0.002,4696.4,4696.3,9.32902786]
[1759788463471,0.002,4696.4,4696.3,6.94533586]
[1759788463673,0.002,4696.4,4696.3,10.46802786]
[1759788464688,0.002,4696.4,4696.3,10.27994086]
[1759788464891,0.002,4696.4,4696.3,1.13595724]
[1759788465207,0.002,4696.4,4696.3,2.415]
[1759788465208,0.4737,4696.4,4696.3,2.415]
[1759788465365,0.4737,4696.4,4695.9,1.13595724]
[1759788465569,0.4737,4696.4,4695.6,0.001]
[1759788465570,0.4717,4696.3,4695.7,1.13595724]
[1759788465898,2.13132581,4696.4,4695.8,6.94455633]
[1759788465899,0.4717,4696.2,4695.8,6.94455633]
[1759788466072,0.4717,4696.1,4695.8,4.815]
[1759788466275,0.4717,4696.0,4695.8,4.815]
[1759788466502,0.4717,4695.9,4695.8,4.815]
[1759788468901,0.4717,4696.1,4695.8,5.95095724]
[1759788469101,0.4717,4696.1,4695.8,8.08051937]
[1759788469396,0.4717,4696.1,4696.0,2.4]
[1759788469601,0.4717,4696.1,4696.0,2.414]
[1759788470900,0.4717,4696.1,4696.0,4.814]
[1759788471199,0.4717,4696.1,4696.0,5.94995724]
[1759788475713,0.4717,4696.1,4696.0,4.814]
[1759788478721,0.002,4696.4,4696.2,2.12934246]
[1759788478930,0.002,4696.4,4696.2,4.54134246]
[1759788480507,0.002,4696.4,4696.3,2.12933586]
[1759788480707,0.002,4696.4,4696.3,4.26323586]
[1759788481514,0.002,4696.4,4696.3,5.40063146]
[1759788482128,0.002,4696.4,4696.3,2.23573586]
[1759788482327,0.002,4696.4,4696.3,4.37523686]
[1759788482940,0.002,4696.4,4696.3,0.1064]
[1759788483440,0.002,4696.4,4696.3,2.596644]
[1759788484238,0.002,4696.4,4696.3,4.72597986]
[1759788484412,0.002,4696.4,4696.3,7.28677986]
[1759788484743,0.002,4696.4,4696.3,14.51909086]
[1759788484942,0.002,4696.4,4696.3,16.14001846]
[1759788485107,0.002,4696.4,4696.3,14.62549086]
[1759788485304,0.002,4696.9,4696.8,2.12910918]
[1759788485534,0.002,4697.4,4697.3,2.12888254]
[1759788485734,0.002,4697.4,4697.3,15.05574354]
[1759788485938,0.002,4697.4,4697.3,15.21654354]
[1759788486456,0.002,4697.4,4697.3,14.38579354]
[1759788487157,0.002,4697.4,4697.3,13.84189354]
[1759788487648,0.002,4697.4,4697.3,7.29323575]
[1759788488154,0.002,4697.4,4697.3,15.87404575]
[1759788488332,0.002,4697.4,4697.3,14.62348775]
[1759788488733,0.002,4697.4,4697.3,15.65884775]
[1759788489237,0.002,4697.4,4697.3,15.57369454]
[1759788489843,0.002,4697.4,4697.3,15.57390854]
[1759788490426,0.002,4697.4,4697.3,15.68149954]
[1759788490625,0.002,4697.4,4697.3,15.57290854]
[1759788490825,0.002,4697.4,4697.3,15.80854539]
[1759788491026,0.002,4697.4,4697.3,15.78735939]
[1759788491225,0.002,4697.4,4697.3,14.58297339]
[1759788491421,0.002,4697.4,4697.3,12.94449709]
[1759788491652,0.002,4697.4,4697.3,13.64024309]
[1759788491855,0.002,4697.4,4697.3,14.91764109]
[1759788492061,0.002,4697.4,4697.3,15.90584809]
[1759788492250,0.002,4697.4,4697.3,16.04346609]
[1759788492427,0.002,4697.4,4697.3,16.02358809]
[1759788492626,0.002,4697.4,4697.3,16.25593509]
[1759788492827,0.002,4697.4,4697.3,16.64047909]
[1759788493755,0.012,4697.9,4697.8,2.12865596]
[1759788493977,0.012,4697.9,4697.8,11.02517996]
[1759788494140,0.012,4697.9,4697.8,13.43761896]
[1759788494660,0.012,4697.9,4697.8,13.56455696]
[1759788495035,0.012,4697.9,4697.8,9.97237896]
[1759788495274,0.012,4697.9,4697.8,12.38237896]
[1759788495659,0.012,4697.9,4697.8,13.31410496]
[1759788496783,0.012,4697.9,4697.8,15.19160496]
[1759788497669,0.012,4697.9,4697.8,17.36062696]
[1759788498770,0.012,4697.9,4697.8,7.20585596]
[1759788498945,0.012,4697.9,4697.8,19.42685996]
[1759788499471,0.012,4697.9,4697.8,19.26605996]
[1759788499769,0.012,4697.9,4697.8,19.89270296]
[1759788499962,0.012,4697.9,4697.8,19.09270296]
[1759788500668,0.012,4697.9,4697.8,7.04505596]
[1759788500966,0.012,4697.9,4697.8,16.23347196]
[1759788501876,0.012,4697.9,4697.8,18.14039996]
[1759788502249,0.012,4697.9,4697.8,17.61285896]
[1759788502692,0.012,4697.9,4697.8,16.46932096]
[1759788502854,0.012,4697.9,4697.8,17.65738196]
[1759788503584,0.012,4697.9,4697.8,18.78749571]
[1759788503792,0.012,4697.9,4697.8,20.37749571]
[1759788503974,0.012,4697.9,4697.8,19.24738196]
[1759788504174,0.012,4697.9,4697.8,20.37749571]
[1759788504347,0.012,4697.9,4697.8,19.18943471]
[1759788504749,0.012,4697.9,4697.8,21.03219271]
[1759788505091,0.012,4697.9,4697.8,20.64319171]
[1759788505380,0.012,4697.9,4697.8,19.84319171]
[1759788505756,0.012,4697.9,4697.8,8.17516971]
[1759788506145,0.012,4697.9,4697.8,17.80737796]
[1759788506977,0.012,4697.9,4697.8,18.61237796]
[1759788507880,0.012,4697.9,4697.8,7.04505596]
[1759788508361,0.012,4697.9,4697.8,23.39736696]
[1759788508564,0.012,4697.9,4697.8,22.11332796]
[1759788508746,0.012,4697.9,4697.8,20.59594696]
[1759788508975,0.012,4697.9,4697.8,20.49594696]
[1759788509882,0.012,4697.9,4697.8,7.04505596]
[1759788510502,0.012,4697.9,4697.8,19.24600296]
[1759788510705,0.012,4697.9,4697.8,19.49515996]
[1759788511074,0.012,4697.9,4697.8,19.61444396]
[1759788512086,0.012,4697.9,4697.8,19.60041896]
[1759788512878,0.012,4697.9,4697.8,19.21220796]
[1759788513106,0.012,4697.9,4697.8,19.42497196]
[1759788514006,0.4803,4697.9,4697.8,10.30900096]
[1759788514206,0.4803,4697.9,4697.8,7.59878096]
[1759788514507,0.4803,4697.9,4697.8,7.04305596]
[1759788514713,2.12866206,4697.8,4697.3,1.13535765]
[1759788514910,0.72919621,4697.7,4696.9,0.001]
[1759788515125,2.59701196,4697.7,4697.0,2.408]
[1759788515312,0.4683,4697.6,4697.0,2.408]